fUST/lending_fUST_20240117
["ID","MTS","AMOUNT","RATE_DAILY","PERIOD"]
[311880737,1705486243476,-2692.7,0.00022191,2]
[311880739,1705486243486,-500.0,0.00022191,2]
[311880741,1705486243494,-629.84713767,0.00022191,2]
[311880743,1705486243503,-1352.26,0.00022191,2]
[311880745,1705486243512,-894.28,0.00022191,2]
[311880747,1705486243521,-500.0,0.00022191,2]
[311880749,1705486243531,-1248.58,0.00022191,2]
[311880751,1705486243540,-1546.46,0.00022191,2]
[311880753,1705486243550,-500.0,0.00022191,2]
[311880755,1705486243559,-500.0,0.00022191,2]
[311880757,1705486243569,-554.47,0.00022191,2]
[311880759,1705486243578,-1726.52,0.00022191,2]
[311880761,1705486243588,-500.0,0.00022191,2]
[311880762,1705486243597,-515.61152056,0.00022191,2]
[311880764,1705486243608,-6641.86,0.00022191,2]
[311880766,1705486243616,-17823.37,0.00022191,2]
[311880768,1705486243626,-9009.61,0.00022191,2]
[311880770,1705486243635,-1214.64,0.00022191,2]
[311880772,1705486243644,-500.0,0.00022191,2]
[311880774,1705486243653,-500.0,0.00022191,2]
[311880776,1705486243662,-1756.92,0.00022191,2]
[311880778,1705486243675,-6253.4729554,0.00022221,2]
[311880780,1705486243684,-500.0,0.00022328,2]
[311880782,1705486243693,-500.0,0.00022328,2]
[311880784,1705486243703,-500.0,0.00022328,2]
[311880786,1705486243712,-500.0,0.00022328,2]
[311880788,1705486243721,-259.75011283,0.00022328,2]
[311880790,1705486243730,-500.0,0.00022328,2]
[311880792,1705486243739,-500.0,0.00022328,2]
[311880794,1705486243749,-500.0,0.00022328,2]
[311880796,1705486243758,-500.0,0.00022328,2]
[311880798,1705486243767,-500.0,0.00022328,2]
[311880800,1705486243776,-500.0,0.00022328,2]
[311880802,1705486243785,-1468.41,0.00022328,2]
[311880804,1705486243794,-500.0,0.00022328,2]
[311880806,1705486243803,-679.89,0.00022328,2]
[311880808,1705486243812,-500.0,0.00022328,2]
[311880810,1705486243821,-546.87,0.00022328,2]
[311880812,1705486243830,-500.0,0.00022328,2]
[311880813,1705486243840,-790.39,0.00022328,2]
[311880815,1705486243849,-500.0,0.00022328,2]
[311880817,1705486243859,-500.0,0.00022328,2]
[311880819,1705486243869,-500.0,0.00022328,2]
[311880821,1705486243877,-809.74,0.00022328,2]
[311880823,1705486243886,-500.0,0.00022328,2]
[311880825,1705486243895,-500.0,0.00022328,2]
[311880827,1705486243905,-506.04587951,0.00022328,2]
[311880829,1705486243915,-1011.2,0.00022328,2]
[311880831,1705486243924,-500.0,0.00022328,2]
[311880833,1705486243933,-1472.87,0.00022328,2]
[311880835,1705486243942,-719.97,0.00022328,2]
[311880837,1705486243951,-500.0,0.00022328,2]
[311880839,1705486243960,-500.0,0.00022328,2]
[311880841,1705486243969,-1211.13,0.00022328,2]
[311880843,1705486243978,-560.3,0.00022328,2]
[311880845,1705486243987,-167.60150433,0.00022328,2]
[311880847,1705486243997,-500.0,0.00022328,2]
[311880849,1705486244006,-871.17,0.00022328,2]
[311880851,1705486244016,-500.0,0.00022328,2]
[311880853,1705486244026,-500.0,0.00022328,2]
[311880855,1705486244036,-500.0,0.00022328,2]
[311880857,1705486244045,-500.0,0.00022328,2]
[311880859,1705486244054,-500.0,0.00022328,2]
[311880861,1705486244063,-2244.22,0.00022328,2]
[311880863,1705486244072,-500.0,0.00022328,2]
[311880865,1705486244081,-500.0,0.00022328,2]
[311880867,1705486244090,-777.27,0.00022328,2]
[311880869,1705486244099,-3290.7,0.00022328,2]
[311880871,1705486244109,-500.0,0.00022328,2]
[311880873,1705486244117,-500.0,0.00022328,2]
[311880875,1705486244126,-500.0,0.00022328,2]
[311880877,1705486244135,-500.0,0.00022328,2]
[311880878,1705486244144,-375.08228626,0.00022328,2]
[311880880,1705486244153,-302.98557895,0.00022328,2]
[311880881,1705486244162,-517.27,0.00022328,2]
[311880883,1705486244173,-1885.79,0.00022328,2]
[311880885,1705486244181,-305.08682904,0.00022328,2]
[311880887,1705486244190,-680.79,0.00022328,2]
[311880888,1705486244199,-2969.88,0.00022328,2]
[311880890,1705486244208,-505.42235422,0.00022328,2]
[311880892,1705486244217,-500.0,0.00022328,2]
[311880893,1705486244226,-500.0,0.00022328,2]
[311880895,1705486244236,-2715.58,0.00022328,2]
[311880897,1705486244246,-713.96,0.00022328,2]
[311880898,1705486244255,-500.0,0.00022328,2]
[311880900,1705486244264,-500.0,0.00022328,2]
[311880902,1705486244273,-547.60006591,0.00022328,2]
[311880904,1705486244284,-500.0,0.00022328,2]
[311880905,1705486244293,-831.04,0.00022328,2]
[311880907,1705486244302,-500.0,0.00022328,2]
[311880909,1705486244312,-500.0,0.00022328,2]
[311880910,1705486244321,-383.96915112,0.00022328,2]
[311880912,1705486244331,-500.0,0.00022328,2]
[311880914,1705486244340,-5793.93,0.00022328,2]
[311880916,1705486244349,-29265.07,0.00022328,2]
[311880917,1705486244358,-500.0,0.00022328,2]
[311880919,1705486244367,-500.0,0.00022328,2]
[311880921,1705486244376,-500.0,0.00022328,2]
[311880923,1705486244385,-768.9,0.00022328,2]
[311880924,1705486244394,-548.29,0.00022328,2]
[311880926,1705486244402,-15831.48,0.00022328,2]
[311880927,1705486244411,-2583.01,0.00022328,2]
[311880928,1705486244421,-500.0,0.00022328,2]
[311880930,1705486244433,-500.0,0.00022328,2]
[311880931,1705486244442,-500.0,0.00022328,2]
[311880933,1705486244451,-836.27,0.00022328,2]
[311880934,1705486244460,-500.0,0.00022328,2]
[311880936,1705486244468,-608.64434299,0.00022328,2]
[311880937,1705486244477,-500.0,0.00022328,2]
[311880939,1705486244486,-500.0,0.00022328,2]
[311880941,1705486244495,-1545.0,0.00022328,2]
[311880942,1705486244503,-2233.47,0.00022328,2]
[311880944,1705486244512,-500.0,0.00022328,2]
[311880945,1705486244521,-805.49,0.00022328,2]
[311880947,1705486244530,-500.0,0.00022328,2]
[311880948,1705486244539,-6815.01,0.00022328,2]
[311880950,1705486244548,-2692.7,0.00022328,2]
[311880952,1705486244557,-500.0,0.00022328,2]
[311880953,1705486244566,-1352.26,0.00022328,2]
[311880955,1705486244575,-894.28,0.00022328,2]
[311880962,1705486244651,-500.0,0.00022328,2]
[311880964,1705486244660,-1248.58,0.00022328,2]
[311880965,1705486244672,-1546.46,0.00022328,2]
[311880967,1705486244682,-500.0,0.00022328,2]
[311880969,1705486244691,-500.0,0.00022328,2]
[311880971,1705486244700,-554.47,0.00022328,2]
[311880973,1705486244709,-1726.52,0.00022328,2]
[311880974,1705486244719,-500.0,0.00022328,2]
[311880976,1705486244728,-6641.86,0.00022328,2]
[311880978,1705486244737,-17823.37,0.00022328,2]
[311880979,1705486244746,-9009.61,0.00022328,2]
[311880981,1705486244755,-1214.64,0.00022328,2]
[311880983,1705486244765,-500.0,0.00022328,2]
[311880984,1705486244774,-500.0,0.00022328,2]
[311880986,1705486244783,-166.666666,0.00022431,2]
[311880988,1705486244792,-151.0,0.00022465,2]
[311880989,1705486244802,-151.0,0.00022465,2]
[311880991,1705486244811,-151.0,0.00022465,2]
[311880992,1705486244820,-151.0,0.00022465,2]
[311880994,1705486244829,-378.091753,0.00022465,2]
[311880996,1705486244838,-378.091753,0.00022465,2]
[311880998,1705486244848,-151.0,0.00022465,2]
[311880999,1705486244857,-584.167224,0.00022465,2]
[311881001,1705486244866,-584.167224,0.00022465,2]
[311881002,1705486244875,-500.0,0.00022465,2]
[311881004,1705486244884,-500.0,0.00022465,2]
[311881006,1705486244893,-500.0,0.00022465,2]
[311881008,1705486244902,-500.0,0.00022465,2]
[311881009,1705486244911,-500.0,0.00022465,2]
[311881011,1705486244922,-500.0,0.00022465,2]
[311881013,1705486244931,-500.0,0.00022465,2]
[311881014,1705486244940,-512.79297288,0.00022465,2]
[311881016,1705486244950,-205.51801189,0.00022465,2]
[311881018,1705486244959,-1468.41,0.00022465,2]
[311881019,1705486244969,-281.3326687,0.00022465,2]
[311881020,1705486244978,-679.89,0.00022465,2]
[311881022,1705486244987,-500.0,0.00022465,2]
[311881024,1705486244996,-546.87,0.00022465,2]
[311881026,1705486245006,-500.0,0.00022465,2]
[311881027,1705486245015,-790.39,0.00022465,2]
[311881029,1705486245024,-420.57604732,0.00022465,2]
[311881031,1705486245033,-500.0,0.00022465,2]
[311881033,1705486245042,-500.0,0.00022465,2]
[311881034,1705486245051,-809.74,0.00022465,2]
[311881036,1705486245060,-500.0,0.00022465,2]
[311881038,1705486245070,-500.0,0.00022465,2]
[311881040,1705486245079,-1011.2,0.00022465,2]
[311881041,1705486245088,-500.0,0.00022465,2]
[311881043,1705486245098,-1472.87,0.00022465,2]
[311881045,1705486245108,-719.97,0.00022465,2]
[311881047,1705486245117,-500.0,0.00022465,2]
[311881048,1705486245126,-500.0,0.00022465,2]
[311881050,1705486245135,-1211.13,0.00022465,2]
[311881052,1705486245144,-560.3,0.00022465,2]
[311881053,1705486245152,-500.0,0.00022465,2]
[311881055,1705486245162,-871.17,0.00022465,2]
[311881057,1705486245174,-500.0,0.00022465,2]
[311881058,1705486245183,-500.0,0.00022465,2]
[311881060,1705486245193,-500.0,0.00022465,2]
[311881062,1705486245202,-500.0,0.00022465,2]
[311881063,1705486245211,-500.0,0.00022465,2]
[311881065,1705486245220,-2244.22,0.00022465,2]
[311881067,1705486245231,-500.0,0.00022465,2]
[311881068,1705486245240,-500.0,0.00022465,2]
[311881070,1705486245250,-777.27,0.00022465,2]
[311881072,1705486245259,-3290.7,0.00022465,2]
[311881073,1705486245268,-500.0,0.00022465,2]
[311881075,1705486245278,-500.0,0.00022465,2]
[311881077,1705486245286,-517.27,0.00022465,2]
[311881078,1705486245295,-1885.79,0.00022465,2]
[311881080,1705486245304,-680.79,0.00022465,2]
[311881082,1705486245315,-2969.88,0.00022465,2]
[311881083,1705486245326,-619.60676546,0.00022465,2]
[311881085,1705486245335,-500.0,0.00022465,2]
[311881087,1705486245345,-2715.58,0.00022465,2]
[311881088,1705486245354,-713.96,0.00022465,2]
[311881090,1705486245363,-500.0,0.00022465,2]
[311881092,1705486245372,-500.0,0.00022465,2]
[311881093,1705486245381,-500.0,0.00022465,2]
[311881095,1705486245390,-831.04,0.00022465,2]
[311881097,1705486245400,-500.0,0.00022465,2]
[311881099,1705486245409,-322.14233015,0.00022465,2]
[311881100,1705486245418,-500.0,0.00022465,2]
[311881102,1705486245427,-5793.93,0.00022465,2]
[311881104,1705486245436,-10342.9008771,0.00022465,2]
[311881107,1705486245458,-6622.12064541,0.00022465,2]
[311881108,1705486245469,-301.33445287,0.00022465,2]
[311881134,1705486245734,-164.168502,0.00020993,2]
[311881135,1705486245743,-5160.27,0.00021907,3]
[311881137,1705486245753,-500.0,0.00021917,2]
[311881139,1705486245762,-1756.92,0.00022328,2]
[311881141,1705486245771,-10355.03774078,0.00022465,2]
[311881171,1705486246135,-500.0,0.00022054,2]
[311881173,1705486246144,-124.03659385,0.00022191,2]
[311881175,1705486246156,-375.96340615,0.00022191,2]
[311881177,1705486246164,-500.0,0.00022328,2]
[311881179,1705486246175,-1643.67628384,0.00022465,2]
[311881181,1705486246184,-500.0,0.00022465,2]
[311881184,1705486246194,-500.0,0.00022465,2]
[311881186,1705486246203,-500.0,0.00022465,2]
[311881188,1705486246213,-768.9,0.00022465,2]
[311881189,1705486246222,-548.29,0.00022465,2]
[311881191,1705486246233,-3839.86452254,0.00022465,2]
[311882535,1705487432280,-154.98450155,0.00019724,3]
[311882539,1705487432292,-154.98450155,0.0002,2]
[311882543,1705487432304,-616.51710907,0.0002,2]
[311882546,1705487432317,-154.98450155,0.00020216,2]
[311882549,1705487432328,-759.85370561,0.00020217,5]
[311882552,1705487432339,-164.168502,0.00020431,2]
[311882556,1705487432350,-3484.99657002,0.00021,2]
[311882560,1705487432361,-153.0,0.00021178,2]
[311882563,1705487432372,-153.0,0.00021178,2]
[311882566,1705487432383,-153.0,0.000212,2]
[311882569,1705487432393,-9111.67082876,0.0002155,2]
[311882572,1705487432404,-153.0,0.000216,2]
[311882576,1705487432416,-500.0,0.00021905,2]
[311882579,1705487432427,-1438.37428973,0.00021906,5]
[311882581,1705487432439,-13930.4,0.00021907,3]
[311882583,1705487432450,-11608.67,0.00021907,3]
[311882586,1705487432461,-156.08728379,0.00021915,2]
[311882588,1705487432472,-1588.5756211,0.00021915,2]
[311882590,1705487432482,-679.24429502,0.00021915,2]
[311882592,1705487432493,-191.16884209,0.00021915,2]
[311882594,1705487432504,-374.3786441,0.00021915,2]
[311882596,1705487432514,-245.76409704,0.00021916,2]
[311882598,1705487432525,-2711.18525978,0.00021916,2]
[311882600,1705487432535,-500.0,0.00021917,2]
[311882602,1705487432546,-500.0,0.00021917,2]
[311882604,1705487432556,-514.97,0.00021917,2]
[311882606,1705487432567,-500.0,0.00021917,2]
[311882609,1705487432578,-500.0,0.00021917,2]
[311882611,1705487432589,-500.0,0.00021917,2]
[311882613,1705487432602,-500.0,0.00021917,2]
[311882615,1705487432614,-755.75,0.00021917,2]
[311882617,1705487432625,-505.04589673,0.00021917,2]
[311882619,1705487432636,-500.0,0.00021917,2]
[311882622,1705487432647,-500.0,0.00021917,2]
[311882624,1705487432659,-500.0,0.00021917,2]
[311882626,1705487432669,-500.0,0.00021917,2]
[311882628,1705487432681,-500.0,0.00021917,2]
[311882630,1705487432695,-500.0,0.00021917,2]
[311882633,1705487432707,-500.0,0.00021917,2]
[311882635,1705487432718,-671.97,0.00021917,2]
[311882649,1705487432844,-500.0,0.00021917,2]
[311882651,1705487432856,-500.0,0.00021917,2]
[311882653,1705487432866,-500.0,0.00021917,2]
[311882655,1705487432875,-500.0,0.00021917,2]
[311882657,1705487432885,-500.0,0.00021917,2]
[311882659,1705487432894,-500.0,0.00021917,2]
[311882661,1705487432903,-500.0,0.00021917,2]
[311882663,1705487432912,-500.0,0.00021917,2]
[311882665,1705487432922,-718.51,0.00021917,2]
[311882667,1705487432931,-465.35602054,0.00021917,2]
[311882669,1705487432942,-500.0,0.00021917,2]
[311882671,1705487432952,-500.0,0.00021917,2]
[311882673,1705487432961,-500.0,0.00021917,2]
[311882675,1705487432969,-500.0,0.00021917,2]
[311882677,1705487432979,-500.0,0.00021917,2]
[311882680,1705487432988,-500.0,0.00021917,2]
[311882682,1705487432997,-500.0,0.00021917,2]
[311882683,1705487433006,-885.07,0.00021917,2]
[311882685,1705487433016,-1291.89,0.00021917,2]
[311882687,1705487433027,-500.0,0.00021917,2]
[311882690,1705487433037,-500.0,0.00021917,2]
[311882691,1705487433046,-500.0,0.00021917,2]
[311882694,1705487433055,-500.0,0.00021917,2]
[311882695,1705487433064,-500.0,0.00021917,2]
[311882697,1705487433074,-500.0,0.00021917,2]
[311882699,1705487433083,-762.51,0.00021917,2]
[311882701,1705487433092,-523.68136719,0.00021917,2]
[311882703,1705487433101,-500.0,0.00021917,2]
[311882705,1705487433110,-327.43482098,0.00021917,2]
[311882707,1705487433119,-506.80923371,0.00021917,2]
[311882709,1705487433128,-1057.3,0.00021917,2]
[311882711,1705487433137,-500.0,0.00021917,2]
[311882713,1705487433147,-500.0,0.00021917,2]
[311882715,1705487433156,-500.0,0.00021917,2]
[311882717,1705487433165,-408.30555975,0.00021917,2]
[311882719,1705487433174,-500.0,0.00021917,2]
[311882721,1705487433183,-338.87749237,0.00021917,2]
[311882734,1705487433294,-161.12250763,0.00021917,2]
[311882736,1705487433303,-500.0,0.00021917,2]
[311882738,1705487433312,-178.5138874,0.00021917,2]
[311882764,1705487438260,-143.62844275,0.00021917,2]
[311882766,1705487438269,-500.0,0.00021917,2]
[311882768,1705487438279,-500.0,0.00021917,2]
[311882770,1705487438289,-2065.59,0.00021917,2]
[311882772,1705487438298,-640.75,0.00021917,2]
[311882774,1705487438308,-69.32892834,0.00021917,2]
[311882776,1705487438319,-430.67107166,0.00021917,2]
[311882778,1705487438329,-500.0,0.00021917,2]
[311882780,1705487438338,-500.0,0.00021917,2]
[311882782,1705487438347,-302.98557895,0.00021917,2]
[311882784,1705487438357,-595.69,0.00021917,2]
[311882786,1705487438366,-1735.79,0.00021917,2]
[311882788,1705487438375,-500.0,0.00021917,2]
[311882790,1705487438384,-455.57136527,0.00021917,2]
[311882792,1705487438394,-500.0,0.00021917,2]
[311882794,1705487438403,-500.0,0.00021917,2]
[311882796,1705487438412,-500.0,0.00021917,2]
[311882798,1705487438421,-101.41262953,0.00021917,2]
[311882837,1705487441099,-398.58737047,0.00021917,2]
[311882839,1705487441126,-500.0,0.00021917,2]
[311882840,1705487441143,-500.0,0.00021917,2]
[311882842,1705487441153,-500.0,0.00021917,2]
[311882844,1705487441163,-455.11051563,0.00021917,2]
[311883034,1705487446321,-9673.89,0.00021907,3]
[311883036,1705487446331,-616.51710907,0.00021916,2]
[311883038,1705487446340,-44.88948437,0.00021917,2]
[311883040,1705487446349,-500.0,0.00021917,2]
[311883042,1705487446359,-500.0,0.00021917,2]
[311883044,1705487446368,-500.0,0.00021917,2]
[311883045,1705487446378,-1054.70340656,0.00021917,2]
[311883158,1705487477349,2000.0,0.000231,30]
[311883159,1705487477764,2000.0,0.0002311,30]
[311883160,1705487478334,2000.0,0.0002312,30]
[311883161,1705487478814,2000.0,0.0002313,30]
[311883162,1705487479322,2000.0,0.0002314,30]
[311883163,1705487479825,2051.200949,0.0002315,30]
[311883215,1705488373029,150.0,0.000231,30]
[311883241,1705488633798,-587.80263423,0.00019721,2]
[311883242,1705488633808,-154.98450155,0.00019722,3]
[311883243,1705488633817,-1241.4576912,0.00019722,2]
[311883244,1705488633827,-616.51710907,0.0002,2]
[311883246,1705488633836,-327.18048,0.00021,2]
[311883247,1705488633846,-163.80830826,0.00021817,2]
[311883248,1705488633855,-3484.99657002,0.00021906,2]
[311883249,1705488633864,-14104.86,0.00021907,3]
[311883250,1705488633874,-5194.0219876,0.00021915,2]
[311883251,1705488633883,-214.87288074,0.00021915,2]
[311883252,1705488633893,-861.45126448,0.00021915,2]
[311883253,1705488633903,-309.9380124,0.00021915,2]
[311883254,1705488633912,-178.67391792,0.00021915,2]
[311883255,1705488633921,-643.52434414,0.00021915,2]
[311883256,1705488633931,-272.20843011,0.00021915,2]
[311883257,1705488633941,-286.00588053,0.00021915,2]
[311883258,1705488633954,-2101.24804165,0.00021916,2]
[311883259,1705488633964,-27300.89627292,0.00021916,2]
[311883260,1705488633973,-500.0,0.00021917,2]
[311883261,1705488633983,-500.0,0.00021917,2]
[311883262,1705488633993,-488.04280479,0.00021917,2]
[311883263,1705488634003,-500.0,0.00021917,2]
[311883264,1705488634012,-500.0,0.00021917,2]
[311883265,1705488634022,-512.31621446,0.00021917,2]
[311883266,1705488634031,-500.0,0.00021917,2]
[311883267,1705488634040,-500.0,0.00021917,2]
[311883268,1705488634049,-500.0,0.00021917,2]
[311883269,1705488634058,-500.0,0.00021917,2]
[311883270,1705488634067,-500.0,0.00021917,2]
[311883271,1705488634077,-500.0,0.00021917,2]
[311883272,1705488634086,-504.74,0.00021917,2]
[311883273,1705488634095,-500.0,0.00021917,2]
[311883274,1705488634105,-500.0,0.00021917,2]
[311883275,1705488634115,-500.0,0.00021917,2]
[311883276,1705488634124,-500.0,0.00021917,2]
[311883277,1705488634134,-678.13,0.00021917,2]
[311883278,1705488634143,-500.0,0.00021917,2]
[311883280,1705488634151,-500.0,0.00021917,2]
[311883282,1705488634161,-530.42,0.00021917,2]
[311883284,1705488634170,-500.0,0.00021917,2]
[311883286,1705488634180,-421.13330795,0.00021917,2]
[311883288,1705488634188,-500.0,0.00021917,2]
[311883290,1705488634199,-500.0,0.00021917,2]
[311883292,1705488634208,-500.0,0.00021917,2]
[311883293,1705488634217,-500.0,0.00021917,2]
[311883294,1705488634226,-500.0,0.00021917,2]
[311883296,1705488634236,-500.0,0.00021917,2]
[311883298,1705488634246,-500.0,0.00021917,2]
[311883300,1705488634255,-500.0,0.00021917,2]
[311883302,1705488634264,-500.0,0.00021917,2]
[311883304,1705488634273,-500.0,0.00021917,2]
[311883306,1705488634282,-575.28227044,0.00021917,2]
[311883308,1705488634291,-1360.8,0.00021917,2]
[311883310,1705488634300,-190.08365744,0.00021917,2]
[311883312,1705488634312,-309.91634256,0.00021917,2]
[311883314,1705488634322,-500.0,0.00021917,2]
[311883316,1705488634331,-932.46,0.00021917,2]
[311883318,1705488634340,-500.0,0.00021917,2]
[311883320,1705488634349,-500.0,0.00021917,2]
[311883322,1705488634358,-500.0,0.00021917,2]
[311883324,1705488634368,-500.0,0.00021917,2]
[311883326,1705488634377,-500.0,0.00021917,2]
[311883328,1705488634387,-500.0,0.00021917,2]
[311883330,1705488634396,-500.0,0.00021917,2]
[311883332,1705488634405,-106.61465124,0.00021917,2]
[311883410,1705488638534,-11754.05,0.00021907,3]
[311883412,1705488638544,-431.99534876,0.00021917,2]
[311883414,1705488638553,-803.33,0.00021917,2]
[311883416,1705488638563,-500.0,0.00021917,2]
[311883418,1705488638572,-500.0,0.00021917,2]
[311883419,1705488638581,-500.0,0.00021917,2]
[311883422,1705488638591,-500.0,0.00021917,2]
[311883423,1705488638601,-500.0,0.00021917,2]
[311883425,1705488638610,-1164.63,0.00021917,2]
[311883427,1705488638619,-500.0,0.00021917,2]
[311883429,1705488638628,-500.0,0.00021917,2]
[311883431,1705488638638,-500.0,0.00021917,2]
[311883433,1705488638647,-500.0,0.00021917,2]
[311883435,1705488638656,-500.0,0.00021917,2]
[311883437,1705488638665,-500.0,0.00021917,2]
[311883439,1705488638675,-500.0,0.00021917,2]
[311883441,1705488638684,-388.70818294,0.00021917,2]
[311883443,1705488638693,-500.0,0.00021917,2]
[311883445,1705488638702,-500.0,0.00021917,2]
[311883447,1705488638711,-500.0,0.00021917,2]
[311883449,1705488638721,-535.84483329,0.00021917,2]
[311883451,1705488638730,-540.7180897,0.00021917,2]
[311883453,1705488638739,-500.0,0.00021917,2]
[311883455,1705488638747,-808.54,0.00021917,2]
[311883457,1705488638757,-500.0,0.00021917,2]
[311883459,1705488638766,-500.0,0.00021917,2]
[311883461,1705488638776,-500.0,0.00021917,2]
[311883463,1705488638785,-434.48775725,0.00021917,2]
[311883465,1705488638794,-363.32405101,0.00021917,2]
[311883467,1705488638803,-500.0,0.00021917,2]
[311883469,1705488638812,-500.0,0.00021917,2]
[311883471,1705488638821,-2268.43,0.00021917,2]
[311883473,1705488638830,-500.0,0.00021917,2]
[311883475,1705488638839,-500.0,0.00021917,2]
[311883476,1705488638848,-222.61017779,0.00021917,2]
[311883478,1705488638857,-500.0,0.00021917,2]
[311883480,1705488638866,-1627.49,0.00021917,2]
[311883482,1705488638876,-500.0,0.00021917,2]
[311883484,1705488638885,-500.0,0.00021917,2]
[311883486,1705488638894,-500.0,0.00021917,2]
[311883488,1705488638904,-3446.15,0.00021917,2]
[311883490,1705488638915,-500.0,0.00021917,2]
[311883492,1705488638932,-500.0,0.00021917,2]
[311883494,1705488638941,-500.0,0.00021917,2]
[311883496,1705488638955,-500.0,0.00021917,2]
[311883498,1705488638965,-627.6,0.00021917,2]
[311883500,1705488638974,-500.0,0.00021917,2]
[311883502,1705488638984,-500.0,0.00021917,2]
[311883504,1705488638994,-500.0,0.00021917,2]
[311883506,1705488639003,-500.0,0.00021917,2]
[311883508,1705488639012,-263.49192401,0.00021917,2]
[311883510,1705488639022,-500.0,0.00021917,2]
[311883512,1705488639031,-1820.61,0.00021917,2]
[311883514,1705488639042,-500.0,0.00021917,2]
[311883516,1705488639052,-500.0,0.00021917,2]
[311883518,1705488639061,-500.0,0.00021917,2]
[311883520,1705488639070,-209.04329782,0.00021917,2]
[311883521,1705488639080,-825.48,0.00021917,2]
[311883523,1705488639089,-500.0,0.00021917,2]
[311883525,1705488639100,-518.28,0.00021917,2]
[311883527,1705488639112,-500.0,0.00021917,2]
[311883529,1705488639122,-584.66,0.00021917,2]
[311883531,1705488639131,-3033.06,0.00021917,2]
[311883533,1705488639141,-500.0,0.00021917,2]
[311883535,1705488639150,-500.0,0.00021917,2]
[311883537,1705488639160,-500.0,0.00021917,2]
[311883539,1705488639169,-500.0,0.00021917,2]
[311883541,1705488639178,-500.0,0.00021917,2]
[311883543,1705488639188,-2888.11,0.00021917,2]
[311883545,1705488639197,-500.0,0.00021917,2]
[311883547,1705488639208,-500.0,0.00021917,2]
[311883549,1705488639218,-500.0,0.00021917,2]
[311883550,1705488639227,-752.21,0.00021917,2]
[311883552,1705488639237,-500.0,0.00021917,2]
[311883553,1705488639246,-500.0,0.00021917,2]
[311883555,1705488639256,-500.0,0.00021917,2]
[311883557,1705488639265,-500.0,0.00021917,2]
[311883559,1705488639275,-500.0,0.00021917,2]
[311883561,1705488639285,-500.0,0.00021917,2]
[311883563,1705488639295,-769.97,0.00021917,2]
[311883565,1705488639304,-796.42,0.00021917,2]
[311883567,1705488639314,-27548.41,0.00021917,2]
[311883569,1705488639323,-500.0,0.00021917,2]
[311883571,1705488639333,-500.0,0.00021917,2]
[311883573,1705488639342,-357.88867272,0.00021917,2]
[311883574,1705488639351,-500.0,0.00021917,2]
[311883576,1705488639361,-500.0,0.00021917,2]
[311883578,1705488639371,-2140.41,0.00021917,2]
[311883580,1705488639381,-5803.51,0.00021917,2]
[311883582,1705488639390,-451.09078181,0.00021917,2]
[311883584,1705488639399,-500.0,0.00021917,2]
[311883586,1705488639408,-505.14162514,0.00021917,2]
[311883588,1705488639417,-500.0,0.00021917,2]
[311883590,1705488639426,-500.0,0.00021917,2]
[311883592,1705488639436,-500.0,0.00021917,2]